lending/lending_fUSD_20251015
["ID","MTS","AMOUNT","RATE_DAILY","PERIOD"]
[391318971,1760516533736,-50000.0,0.00030239,34]
[391318972,1760516533794,-50000.0,0.00030239,35]
[391318973,1760516533847,-1000.0,0.00030239,30]
[391318974,1760516533905,-1000.0,0.00030239,30]
[391318975,1760516533958,-1000.0,0.00030239,30]
[391318976,1760516534012,-437.20465037,0.00030239,30]
[391318977,1760516534073,-1000.0,0.00030239,30]
[391318978,1760516534138,-1000.0,0.00030239,30]
[391318979,1760516534194,-798.79777148,0.00030239,30]
[391318980,1760516534249,-1000.0,0.00030239,30]
[391318981,1760516534303,-1000.0,0.00030239,30]
[391318982,1760516534358,-1000.0,0.00030239,30]
[391318983,1760516534412,-935.89293851,0.00030239,30]
[391318984,1760516534466,-1000.0,0.00030239,30]
[391318985,1760516534519,-1000.0,0.00030239,30]
[391318986,1760516534571,-1000.0,0.00030239,30]
[391318987,1760516534622,-1000.0,0.00030239,30]
[391318988,1760516534676,-1000.0,0.00030239,30]
[391318989,1760516534729,-1000.0,0.00030239,30]
[391318990,1760516535211,-1000.0,0.00030239,30]
[391318991,1760516535269,-1000.0,0.00030239,30]
[391318992,1760516535323,-1000.0,0.00030239,30]
[391318993,1760516535380,-1000.0,0.00030239,30]
[391318994,1760516535434,-1000.0,0.00030239,30]
[391318995,1760516535492,-1000.0,0.00030239,30]
[391318996,1760516535549,-1000.0,0.00030239,30]
[391318997,1760516535608,-1000.0,0.00030239,30]
[391318998,1760516535662,-1000.0,0.00030239,30]
[391318999,1760516535714,-1000.0,0.00030239,30]
[391319000,1760516535769,-1000.0,0.00030239,30]
[391319001,1760516535821,-1000.0,0.00030239,30]
[391319002,1760516535874,-532.39200095,0.00030239,30]
[391319003,1760516535928,-397.89667768,0.00030239,30]
[391319004,1760516535984,-673.36472741,0.00030239,30]
[391319005,1760516536038,-2243.93968416,0.00030239,30]
[391319006,1760516536094,-912.91553012,0.00030239,30]
[391319007,1760516536151,-1160.36108438,0.00030239,30]
[391319008,1760516536204,-2502.65883089,0.00030239,30]
[391319009,1760516536264,-2921.50350625,0.00030239,30]
[391319010,1760516536321,-711.56842347,0.00030239,30]
[391319011,1760516536376,-2090.36042426,0.00030239,30]
[391319012,1760516536433,-770.20750811,0.00030239,30]
[391319013,1760516536487,-2128.34881821,0.00030239,30]
[391319014,1760516536541,-2300.13400042,0.00030239,30]
[391319015,1760516536596,-2500.0,0.00030239,30]
[391319016,1760516536647,-1065.38144626,0.00030239,30]
[391319017,1760516536699,-1484.57858554,0.00030239,30]
[391319018,1760516536751,-660.95772768,0.00030239,30]
[391319019,1760516536812,-894.0193186,0.00030239,30]
[391319020,1760516536865,-2240.15080804,0.00030239,30]
[391319021,1760516536920,-902.75686316,0.00030239,30]
[391319022,1760516536972,-2318.86771892,0.00030239,30]
[391319023,1760516537026,-1329.27615657,0.00030239,30]
[391319024,1760516537082,-972.3959526,0.00030239,30]
[391319025,1760516537140,-1378.36401417,0.00030239,30]
[391319026,1760516537194,-217.59730031,0.00030239,30]
[391319027,1760516537249,-1004.67543415,0.00030239,30]
[391319028,1760516537307,-2000.0,0.00030239,30]
[391319029,1760516537363,-367.09146871,0.00030239,30]
[391319030,1760516537419,-495.9602898,0.00030239,30]
[391319031,1760516537473,-689.23573234,0.00030239,30]
[391319032,1760516537527,-1961.72402349,0.00030239,30]
[391319033,1760516537578,-1057.54140274,0.00030239,30]
[391319034,1760516537631,-199.75740837,0.00030239,30]
[391319035,1760516537687,-997.0,0.00030239,30]
[391319036,1760516537742,-2197.12759637,0.00030239,31]
[391319037,1760516537798,-891.35667173,0.00030239,30]
[391319038,1760516537860,-2756.17254671,0.00030239,30]
[391319039,1760516537919,-923.65449752,0.00030239,30]
[391319040,1760516537975,-452.20405859,0.00030239,30]
[391319041,1760516538031,-213.20262401,0.00030239,30]
[391319042,1760516538084,-1089.31904789,0.00030239,30]
[391319043,1760516538137,-1129.25205054,0.00030239,30]
[391319044,1760516538190,-2821.88432359,0.00030239,30]
[391319045,1760516538244,-279.25128552,0.00030239,30]
[391319046,1760516538303,-1624.10006118,0.00030239,30]
[391319047,1760516538359,-2375.65407771,0.00030239,30]
[391319048,1760516538412,-1844.41510446,0.00030239,30]
[391319049,1760516538467,-213.07093276,0.00030239,31]
[391319050,1760516538521,-2438.8191881,0.00030239,30]
[391319051,1760516538574,-2004.80415099,0.00030239,30]
[391319052,1760516538627,-1534.35796662,0.00030239,30]
[391319053,1760516538680,-2407.37659811,0.00030239,30]
[391319054,1760516538733,-290.79121665,0.00030239,30]
[391319055,1760516538784,-1212.44325706,0.00030239,30]
[391319056,1760516538835,-274.23748774,0.00030239,30]
[391319057,1760516538899,-448.92581676,0.00030239,30]
[391319058,1760516538954,-1532.11735219,0.00030239,30]
[391319059,1760516539006,-1084.35803797,0.00030239,30]
[391319060,1760516539056,-379.74115212,0.00030239,30]
[391319061,1760516539108,-2034.82436353,0.00030239,30]
[391319062,1760516539160,-1223.16869346,0.00030239,30]
[391319063,1760516539215,-2867.62874874,0.00030239,30]
[391319064,1760516539268,-2325.3822013,0.00030239,30]
[391319065,1760516539322,-3925.12,0.00030239,31]
[391319066,1760516539374,-3063.60961017,0.00030239,30]
[391319067,1760516539427,-1380.13962819,0.00030239,30]
[391319068,1760516539481,-294.12495366,0.00030239,30]
[391319069,1760516539534,-229.85692564,0.00030239,30]
[391319070,1760516539587,-214.4,0.00030239,30]
[391319071,1760516539640,-214.4,0.00030239,30]
[391319072,1760516540784,-1820.559087,0.00030239,35]
[391319073,1760516542106,-9916.0,0.00030239,30]
[391319074,1760516542225,-2835.0,0.00030239,30]
[391319075,1760516542281,-550.0,0.00030239,37]
[391319076,1760516542335,-770.3172081,0.00030239,30]
[391319077,1760516542512,-872.72229488,0.00030239,30]
[391319078,1760516542564,-1301.09,0.00030239,30]
[391319079,1760516542613,-1301.09,0.00030239,30]
[391319080,1760516542666,-1301.09,0.00030239,30]
[391319081,1760516542720,-1301.09,0.00030239,30]
[391319082,1760516542774,-1301.09,0.00030239,30]
[391319083,1760516542826,-1301.09,0.00030239,30]
[391319084,1760516542878,-1301.09,0.00030239,30]
[391319085,1760516542930,-1301.09,0.00030239,30]
[391319086,1760516542983,-1301.09,0.00030239,30]
[391319087,1760516543035,-1301.09,0.00030239,30]
[391319088,1760516543088,-1301.09,0.00030239,30]
[391319089,1760516543144,-1301.09,0.00030239,30]
[391319090,1760516543199,-1301.09,0.00030239,30]
[391319091,1760516543254,-1301.09,0.00030239,30]
[391319092,1760516543311,-1301.09,0.00030239,30]
[391319093,1760516543365,-1301.09,0.00030239,30]
[391319094,1760516543418,-1301.09,0.00030239,30]
[391319095,1760516543469,-1301.09,0.00030239,30]
[391319096,1760516543520,-1301.09,0.00030239,30]
[391319097,1760516543570,-1301.09,0.00030239,30]
[391319098,1760516543622,-1301.09,0.00030239,30]
[391319099,1760516543672,-1301.09,0.00030239,30]
[391319100,1760516543724,-1301.09,0.00030239,30]
[391319101,1760516543775,-1301.3216689,0.00030239,30]
[391319102,1760516544366,-2000.0,0.00030239,30]
[391319103,1760516544421,-2000.0,0.00030239,30]
[391319104,1760516544474,-2000.0,0.00030239,30]
[391319105,1760516544531,-2000.0,0.00030239,30]
[391319106,1760516544582,-2000.0,0.00030239,30]
[391319107,1760516544632,-2000.0,0.00030239,30]
[391319108,1760516544683,-2000.0,0.00030239,30]
[391319109,1760516544735,-2007.98977094,0.00030239,30]
[391319110,1760516564960,214.4,0.00030239,30]
[391319111,1760516631538,470.13,0.00027397,120]
[391319113,1760516784759,-68.68959843,0.00012754,2]
[391319114,1760516784786,-2000.0,0.00012858,2]
[391319115,1760516784810,-231.31040157,0.00012962,2]
[391319116,1760516883877,50000.0,0.00030239,30]
[391319117,1760516890121,50000.0,0.00030239,31]
[391319118,1760516894848,50000.0,0.00030239,32]
[391319119,1760516897584,50000.0,0.00030239,33]
[391319120,1760516901227,50000.0,0.00030239,34]
[391319121,1760516904280,50000.0,0.00030239,35]
[391319122,1760516907628,50000.0,0.00030239,36]
[391319123,1760516911483,50000.0,0.00030239,37]
[391319124,1760516914783,50000.0,0.00030239,38]
[391319125,1760516918097,50000.0,0.00030239,39]
[391319126,1760516918932,100000.0,0.00012535,2]
[391319127,1760516934908,50000.0,0.00030239,30]
[391319128,1760516938367,50000.0,0.00030239,31]
[391319129,1760516943382,50000.0,0.00030239,32]
[391319130,1760516946876,50000.0,0.00030239,33]
[391319136,1760516950068,50000.0,0.00030239,34]
[391319137,1760516954417,50000.0,0.00030239,35]
[391319138,1760516966012,1000.0,0.00030239,30]
[391319139,1760516973927,50000.0,0.00030239,36]
[391319140,1760516977791,50000.0,0.00030239,37]
[391319141,1760516980707,50000.0,0.00030239,38]
[391319142,1760516982050,2788.65,0.00027397,120]
[391319143,1760516984523,50000.0,0.00030239,39]
[391319144,1760516987074,178.41,6.624e-05,2]
[391319145,1760516987290,178.41,8.832e-05,2]
[391319146,1760516989014,178.41,0.00011039,2]
[391319147,1760517023728,50000.0,0.00030239,37]
[391319153,1760517035860,-206.88771,0.00012896,2]
[391319154,1760517035871,-97.02145834,0.00012962,2]
[391319155,1760517035880,-249.30962741,0.00012962,2]
[391319156,1760517035894,-1090.0,0.00013169,2]
[391319158,1760517035904,-178.41,0.00013247,2]
[391319160,1760517035913,-453.74480424,0.00013258,2]
[391319163,1760517035925,-392.42478626,0.00013258,2]
[391319164,1760517035936,-353.8304095,0.00013258,2]
[391319165,1760517035945,-4420.37,0.00013259,2]
[391319166,1760517035954,-300.0,0.00013271,2]
[391319167,1760517035963,-300.0,0.00013271,2]
[391319168,1760517035974,-300.0,0.00013271,2]
[391319169,1760517035983,-2751.0,0.00013272,2]
[391319170,1760517035995,-666.0,0.00013461,3]
[391319171,1760517036004,-250.0,0.0001354,7]
[391319172,1760517036012,-150.0,0.00013577,2]
[391319173,1760517036022,-166.66,0.00013699,2]
[391319174,1760517036031,-166.66,0.00013843,2]
[391319175,1760517036040,-1090.0,0.00013862,2]
[391319176,1760517036049,-162.23,0.0001388,2]
[391319177,1760517036059,-1200.0,0.00013898,2]
[391319178,1760517036068,-150.0,0.00013899,2]
[391319179,1760517036077,-49339.33192134,0.000139,2]
[391319180,1760517036085,-272.56,0.0001398,2]
[391319181,1760517036095,-166.66,0.00013987,2]
[391319182,1760517036108,-500.0,0.00014,2]
[391319183,1760517036118,-500.0,0.00014,2]
[391319184,1760517036126,-500.0,0.00014,2]
[391319185,1760517036139,-500.0,0.00014,2]
[391319186,1760517036148,-500.0,0.00014,2]
[391319187,1760517036158,-500.0,0.00014,2]
[391319188,1760517036167,-500.0,0.00014,2]
[391319189,1760517036176,-500.0,0.00014,2]
[391319190,1760517036185,-500.0,0.00014,2]
[391319191,1760517036194,-500.0,0.00014,2]
[391319193,1760517036204,-500.0,0.00014,2]
[391319195,1760517036213,-500.0,0.00014,2]
[391319197,1760517036223,-231.6,0.00014,2]
[391319199,1760517036232,-503.0,0.00014,2]
[391319201,1760517036242,-150.0,0.00014008,2]
[391319203,1760517036252,-1148.97302489,0.0001401,2]
[391319205,1760517036262,-195.0,0.00014029,2]
[391319207,1760517036271,-200.0,0.00014079,2]
[391319209,1760517036281,-17309.4,0.00014079,2]
[391319211,1760517036291,-994.19,0.00014079,2]
[391319216,1760517036852,-1600.0,0.00014079,2]
[391319217,1760517036873,-166.66,0.00014131,2]
[391319218,1760517036885,-250.0,0.00014186,2]
[391319219,1760517036897,-300.0,0.00014186,2]
[391319220,1760517036907,-300.0,0.00014186,2]
[391319221,1760517036917,-200.0,0.00014191,2]
[391319222,1760517036926,-500.0,0.00014191,2]
[391319223,1760517036935,-150.0,0.00014191,2]
[391319224,1760517036944,-150.0,0.00014191,2]
[391319225,1760517036953,-500.0,0.00014191,2]
[391319226,1760517036962,-150.0,0.00014191,2]
[391319227,1760517036972,-500.0,0.00014191,2]
[391319228,1760517036981,-500.0,0.00014191,2]
[391319229,1760517036991,-150.0,0.00014191,2]
[391319230,1760517037001,-500.0,0.00014191,2]
[391319231,1760517037010,-150.0,0.00014191,2]
[391319232,1760517037021,-500.0,0.00014191,2]
[391319233,1760517037030,-13354.1,0.00014191,2]
[391319234,1760517037039,-944.00102374,0.00014235,2]
[391319235,1760517037049,-250.0,0.00014235,2]
[391319236,1760517037058,-277.35679052,0.00014235,2]
[391319237,1760517037067,-322.6107,0.00014235,2]
[391319238,1760517037076,-14368.48432759,0.00014236,2]
[391319239,1760517037085,-500.0,0.00014246,2]
[391319240,1760517037097,-150.0,0.00014246,2]
[391319241,1760517037106,-500.0,0.00014246,2]
[391319242,1760517037115,-500.0,0.00014246,2]
[391319243,1760517037125,-500.0,0.00014246,2]
[391319244,1760517037136,-500.0,0.00014246,2]
[391319245,1760517037145,-195.0,0.00014258,2]
[391319246,1760517037155,-250.0,0.00014258,2]
[391319247,1760517037164,-300.0,0.00014258,2]
[391319248,1760517037174,-253.38640261,0.00014258,2]
[391319249,1760517037183,-166.66,0.00014275,2]
[391319250,1760517037192,-500.0,0.00014301,2]
[391319251,1760517037202,-150.0,0.00014301,2]
[391319252,1760517037211,-500.0,0.00014301,2]
[391319253,1760517037220,-500.0,0.00014301,2]
[391319254,1760517037230,-512.03572401,0.00014301,2]
[391319255,1760517037240,-500.0,0.00014301,2]
[391319256,1760517037250,-357.0,0.00014326,2]
[391319257,1760517037259,-357.0,0.00014329,2]
[391319258,1760517037268,-500.0,0.00014355,2]
[391319259,1760517037278,-500.0,0.00014355,2]
[391319260,1760517037288,-500.0,0.00014355,2]
[391319261,1760517037298,-500.0,0.00014355,2]
[391319262,1760517037307,-2583.29355066,0.00014404,2]
[391319263,1760517037316,-500.0,0.0001441,2]
[391319264,1760517037326,-500.0,0.0001441,2]
[391319265,1760517037336,-200.0,0.0001441,2]
[391319266,1760517037345,-500.0,0.0001441,2]
[391319267,1760517037355,-166.66,0.0001442,2]
[391319268,1760517037364,-2583.29355065,0.00014459,2]
[391319269,1760517037375,-500.0,0.00014465,2]
[391319270,1760517037387,-500.0,0.00014465,2]
[391319271,1760517037396,-4775.17,0.00014504,2]
[391319272,1760517037406,-3130.4454964,0.00014504,2]
[391319273,1760517037419,-1977.4945036,0.00014504,2]
[391319274,1760517037429,-999.99,0.00014504,2]
[391319275,1760517037438,-8906.1964269,0.00014504,2]
[391319276,1760517037449,-901.10174643,0.00014504,2]
[391319277,1760517037480,-500.0,0.00014465,2]
[391319278,1760517037494,-3306.61182667,0.00014504,2]
[391319279,1760517037505,-7762.49729366,0.00014504,2]
[391319280,1760517037516,-2237.49270634,0.00014504,2]
[391319281,1760517037526,-299.99,0.00014504,2]
[391319282,1760517037535,-150.99,0.00014504,2]
[391319283,1760517037544,-150.99,0.00014504,2]
[391319284,1760517037553,-9999.99,0.00014504,2]
[391319285,1760517037562,-2583.29355065,0.00014514,2]
[391319286,1760517037572,-500.0,0.0001452,2]
[391319287,1760517037581,-500.0,0.0001452,2]
[391319288,1760517037591,-420.0,0.0001455,2]
[391319289,1760517037600,-420.0,0.0001455,2]
[391319290,1760517037610,-357.0,0.00014561,2]
[391319291,1760517037619,-2583.29355065,0.00014569,2]
[391319292,1760517037628,-584.0,0.00014575,2]
[391319293,1760517037641,-500.0,0.00014575,2]
[391319294,1760517037651,-357.0,0.0001458,2]
[391319295,1760517037660,-1680.0,0.00014584,2]
[391319296,1760517037670,-1090.0,0.00014592,2]
[391319297,1760517037679,-150.0,0.00014592,2]
[391319298,1760517037688,-500.0,0.00014592,2]
[391319299,1760517037698,-500.0,0.00014592,2]
[391319300,1760517037707,-150.0,0.00014592,2]
[391319301,1760517037716,-500.0,0.00014592,2]
[391319302,1760517037726,-150.0,0.00014592,2]
[391319303,1760517037735,-500.0,0.00014592,2]
[391319304,1760517037745,-168.0,0.00014603,2]
[391319305,1760517037754,-2583.29355065,0.00014624,2]
[391319306,1760517037763,-357.0,0.00014626,2]
[391319307,1760517037772,-400.19134278,0.00014629,2]
[391319308,1760517037782,-168.0,0.00014633,2]
[391319309,1760517037791,-165.88,0.00014637,2]
[391319310,1760517037800,-150.0,0.00014647,2]
[391319311,1760517037809,-500.0,0.00014647,2]
[391319312,1760517037818,-500.0,0.00014647,2]
[391319313,1760517037828,-217.52038592,0.00014647,2]
[391319314,1760517037837,-500.0,0.00014647,2]
[391319315,1760517037846,-150.0,0.00014647,2]
[391319316,1760517037856,-500.0,0.00014647,2]
[391319317,1760517037865,-357.0,0.0001465,2]
[391319318,1760517037874,-2583.29355065,0.0001468,2]
[391319319,1760517037885,-357.0,0.0001469,2]
[391319320,1760517037894,-7500.0,0.0001469,2]
[391319321,1760517037905,-1813.28987878,0.0001469,2]
[391319322,1760517037914,-820.91164613,0.00014699,2]
[391319323,1760517037924,-150.0,0.00014702,2]
[391319324,1760517037933,-500.0,0.00014702,2]
[391319325,1760517037943,-500.0,0.00014702,2]
[391319326,1760517037952,-500.0,0.00014702,2]
[391319327,1760517037961,-150.0,0.00014702,2]
[391319328,1760517037973,-203.70413087,0.00014702,2]
[391319329,1760517037983,-357.0,0.00014727,2]
[391319330,1760517037992,-2583.29355065,0.00014735,2]
[391319331,1760517038002,-254.07051081,0.00014756,2]
[391319332,1760517038012,-500.0,0.00014756,2]
[391319333,1760517038022,-500.0,0.00014756,2]
[391319334,1760517038037,-200.59891275,0.00014756,2]
[391319335,1760517038047,-2583.29355065,0.0001479,2]
[391319336,1760517038058,-500.0,0.00014811,2]
[391319337,1760517038069,-500.0,0.00014811,2]
[391319338,1760517038079,-2583.29355065,0.00014845,2]
[391319339,1760517038090,-837.98493,0.0001485,2]
[391319340,1760517038100,-166.70435657,0.00014865,2]
[391319341,1760517038110,-500.0,0.00014866,2]
[391319342,1760517038120,-500.0,0.00014866,2]
[391319344,1760517038132,-1425.0,0.00014866,2]
[391319345,1760517038146,-1000.0,0.00014869,2]
[391319346,1760517038155,-27761.1021,0.00014869,2]
[391319347,1760517038165,-168.0,0.00014869,2]
[391319348,1760517038176,-4638.1142576,0.0001487,2]
[391319349,1760517038186,-161.27784218,0.0001487,2]
[391319350,1760517038196,-163.0601458,0.00014873,2]
[391319351,1760517038207,-217.87679864,0.00014873,2]
[391319352,1760517038218,-572.19822811,0.00014873,2]
[391319353,1760517038229,-189.17364432,0.00014873,2]
[391319354,1760517038239,-4638.1142576,0.00014873,2]
[391319355,1760517038250,-4638.1142576,0.00014877,2]
[391319356,1760517038260,-200.0,0.00014878,2]
[391319357,1760517038270,-189.17364428,0.0001488,2]
[391319358,1760517038280,-166.70435655,0.00014883,2]
[391319359,1760517038290,-161.27784217,0.00014885,2]
[391319360,1760517038303,-572.1982281,0.00014887,2]
[391319361,1760517038314,-5000.0,0.00014896,2]
[391319362,1760517038323,-171.93466732,0.000149,2]
[391319363,1760517038334,-167.86277847,0.000149,2]
[391319364,1760517038343,-166.70435655,0.000149,2]
[391319365,1760517038353,-2583.29355065,0.000149,2]
[391319366,1760517038363,-572.1982281,0.000149,2]
[391319367,1760517038373,-500.0,0.00014921,2]
[391319368,1760517038384,-500.0,0.00014921,2]
[391319369,1760517038397,-1000.0,0.00014936,2]
[391319370,1760517038407,-1000.0,0.00014936,2]
[391319371,1760517038417,-1000.0,0.00014936,2]
[391319372,1760517038428,-1000.0,0.00014936,2]
[391319373,1760517038437,-1000.0,0.00014936,2]
[391319374,1760517038447,-1000.0,0.00014936,2]
[391319375,1760517038458,-704.404,0.00014936,2]
[391319376,1760517038468,-3271.244,0.00014959,2]
[391319377,1760517038478,-165.88,0.0001496,2]
[391319378,1760517038488,-165.88,0.0001496,2]
[391319379,1760517038497,-179.892,0.00014963,2]
[391319380,1760517038508,-4053.9973891,0.00014965,2]
[391319381,1760517038517,-3910.927459,0.00014965,2]
[391319382,1760517038527,-599.05321106,0.00014969,2]
[391319383,1760517038537,-500.0,0.00014969,2]
[391319384,1760517038546,-420.63587778,0.00014969,2]
[391319386,1760517038556,-411.88646979,0.00014969,2]
[391319388,1760517038566,-500.0,0.00014969,2]
[391319390,1760517038575,-500.0,0.00014969,2]
[391319391,1760517038584,-500.0,0.00014969,2]
[391319392,1760517038599,-441.41332375,0.00014969,2]
[391319394,1760517038609,-500.0,0.00014969,2]
[391319395,1760517038619,-464.81277902,0.00014969,2]
[391319398,1760517039289,-166.20641828,0.00014079,2]
[391319399,1760517039300,-479.39361516,0.0001452,2]
[391319400,1760517039313,-20.60638484,0.0001452,2]
[391319401,1760517039324,-500.0,0.00014575,2]
[391319402,1760517039334,-500.0,0.00014629,2]
[391319403,1760517039344,-500.0,0.00014684,2]
[391319404,1760517039355,-500.0,0.00014739,2]
[391319405,1760517039365,-500.0,0.00014794,2]
[391319406,1760517039376,-500.0,0.00014849,2]
[391319407,1760517039390,-4638.1142576,0.0001488,2]
[391319408,1760517039400,-500.0,0.00014903,2]
[391319409,1760517039411,-500.0,0.00014958,2]
[391319410,1760517039421,-176.21513482,0.0001496,2]
[391319411,1760517039432,-35.18722098,0.00014969,2]
[391319412,1760517039442,-243.98311633,0.00014969,2]
[391319413,1760517039453,-625.813,0.00014969,2]
[391319414,1760517039463,-669.93898507,0.00014969,2]
[391319415,1760517039473,-982.0,0.0001497,2]
[391319416,1760517039482,-19009.2675105,0.0001497,2]
[391319417,1760517039495,-500.0,0.0001497,2]
[391319418,1760517039546,-0.00182868,0.0001497,2]
[391319419,1760517039558,-1191.9,0.0001497,2]
[391319420,1760517039580,-1420.94912445,0.0001497,2]
[391319426,1760517040400,-257.68488588,0.00014191,2]
[391319427,1760517040412,-242.31511412,0.00014191,2]
[391319428,1760517040422,-174.20612068,0.00014246,2]
[391319429,1760517040472,-325.79387932,0.00014246,2]
[391319430,1760517040481,-500.0,0.00014301,2]
[391319431,1760517040491,-500.0,0.00014355,2]
[391319432,1760517040501,-500.0,0.0001441,2]
[391319433,1760517040512,-161.27784217,0.000149,2]
[391319434,1760517040521,-107407.96785171,0.0001497,2]
[391319435,1760517040531,-43683.6862866,0.0001497,3]
[391319436,1760517040586,-500.0,0.00014465,2]
[391319437,1760517040595,-189.17364428,0.00014887,2]
[391319438,1760517040605,-825.67635572,0.0001497,3]
[391319453,1760517043492,-500.0,0.0001452,2]
[391319454,1760517043502,-500.0,0.00014575,2]
[391319455,1760517043511,-500.0,0.00014629,2]
[391319456,1760517043520,-500.0,0.00014684,2]
[391319457,1760517043529,-125.71579324,0.00014739,2]
[391319460,1760517046539,-331.48598114,0.00014739,2]
[391319461,1760517046550,-42.79822562,0.00014739,2]
[391319462,1760517046560,-500.0,0.00014794,2]
[391319463,1760517046570,-590.0,0.00014849,2]
[391319464,1760517046579,-1627.83179909,0.00014883,2]
[391319465,1760517046590,-513.29637348,0.00014883,2]
[391319466,1760517046621,-2496.98608503,0.00014883,2]
[391319467,1760517046630,-1504.25794983,0.00014887,2]
[391319468,1760517046645,-3133.85630777,0.00014887,2]
[391319469,1760517046655,-189.17364428,0.00014893,2]
[391319470,1760517046664,-57866.90929332,0.0001497,3]
[391319471,1760517046675,-11332.0,0.0001497,3]
[391319472,1760517046686,-11336.0,0.0001497,3]
[391319473,1760517046697,-325.594639,0.0001497,3]
[391319474,1760517046711,-3323.07021918,0.0001497,3]
[391319475,1760517046722,-536487.96287488,0.0001497,3]
[391319477,1760517046749,-4941.90990004,0.0001497,3]
[391319478,1760517046760,-402.86970558,0.0001497,3]
[391319479,1760517070013,50000.0,0.00030239,37]
[391319480,1760517161926,150.0,0.0003024,30]
[391319481,1760517325018,50000.0,0.0003024,30]
[391319482,1760517340690,50000.0,0.0003024,31]
[391319483,1760517345281,50000.0,0.0003024,32]
[391319484,1760517351555,50000.0,0.0003024,33]
[391319485,1760517355167,50000.0,0.0003024,34]
[391319486,1760517359427,50000.0,0.0003024,35]
[391319487,1760517363356,50000.0,0.0003024,36]
[391319488,1760517366487,50000.0,0.0003024,37]
[391319489,1760517370686,50000.0,0.0003024,38]
[391319490,1760517430968,177.75,0.00011115,2]
[391319491,1760517575053,1000.0,0.00030226,30]
[391319492,1760517575837,1000.0,0.00030226,30]
[391319493,1760517577956,1000.0,0.00030226,30]
[391319494,1760517579795,1000.0,0.00030226,30]
[391319495,1760517580585,1000.0,0.00030226,30]
[391319496,1760517581471,1000.0,0.00030226,30]
[391319497,1760517582368,749.71391515,0.00030226,30]
[391319498,1760517714102,3000.0,0.00027397,120]
[391319499,1760517721849,3923.0,0.00027397,120]
[391319500,1760517759683,2000.0,0.0002,120]
[391319504,1760518006209,181.41283655,0.00011115,2]
[391319521,1760518231450,-1003.39,0.00013608,2]
[391319522,1760518231459,-3960.52,0.00013646,2]
[391319523,1760518231469,-195.0,0.0001379,2]
[391319524,1760518231478,-250.0,0.00013898,2]
[391319525,1760518231487,-300.0,0.00013898,2]
[391319526,1760518231496,-1200.0,0.00013899,2]
[391319527,1760518231505,-1500.0,0.000139,2]
[391319528,1760518231514,-300.0,0.00013979,2]
[391319529,1760518231524,-277.35679052,0.00014093,2]
[391319530,1760518231533,-300.0,0.00014183,2]
[391319531,1760518231542,-641.0,0.00014184,2]
[391319532,1760518231553,-151.0,0.00014196,2]
[391319533,1760518231562,-266.0,0.00014198,2]
[391319534,1760518231572,-150.0,0.00014198,2]
[391319535,1760518231582,-641.0,0.00014199,2]
[391319536,1760518231591,-150.99,0.00014199,2]
[391319537,1760518231601,-18316.22724214,0.00014199,2]
[391319538,1760518231613,-18820.82235603,0.00014199,2]
[391319539,1760518231653,-56778.41040183,0.00014199,2]
[391319540,1760518231668,-13318.8,0.00014199,2]
[391319541,1760518231677,-9999.99,0.00014199,2]
[391319542,1760518231687,-999.99,0.00014199,2]
[391319543,1760518231696,-9999.99,0.00014199,2]
[391319544,1760518231706,-641.0,0.00014266,2]
[391319545,1760518231716,-150.99,0.00014266,2]
[391319546,1760518231730,-641.0,0.0001432,2]
[391319547,1760518231741,-641.0,0.00014397,2]